[Event "Early-Titled-Tuesday-Blitz-February-27-2024"]
[Site "Chess.com"]
[Date "2024.02.27"]
[Round "4"]
[White "ahkashefi2800"]
[Black "Hovik_Hayrapetyan"]
[Result "1-0"]
[WhiteElo "2600"]
[BlackElo "2885"]
[TimeControl "180+1"]
[EndTime "8:40:11 PST"]
[Termination "ahkashefi2800 won by resignation"]

1. Nf3 {[%clk 0:02:59.9]} 1... d5 {[%clk 0:02:58.3]} 2. g3 {[%clk 0:02:59.6]}
2... Nf6 {[%clk 0:02:58.2]} 3. Bg2 {[%clk 0:02:59.9]} 3... e6 {[%clk 0:02:56.8]}
4. b3 {[%clk 0:03:00]} 4... Be7 {[%clk 0:02:55.3]} 5. Bb2 {[%clk 0:03:00.3]}
5... O-O {[%clk 0:02:55.5]} 6. O-O {[%clk 0:03:00.7]} 6... c5 {[%clk 0:02:55.2]}
7. e3 {[%clk 0:03:01.1]} 7... Nc6 {[%clk 0:02:54.3]} 8. d3 {[%clk 0:03:01.5]}
8... b6 {[%clk 0:02:51.7]} 9. Nbd2 {[%clk 0:03:01.7]} 9... Bb7 {[%clk
0:02:51.9]} 10. Qe2 {[%clk 0:03:02.1]} 10... Qc7 {[%clk 0:02:39.3]} 11. Rfe1
{[%clk 0:03:01.7]} 11... e5 {[%clk 0:02:37.6]} 12. e4 {[%clk 0:03:01.3]} 12...
dxe4 {[%clk 0:02:26.6]} 13. Nxe4 {[%clk 0:03:01.2]} 13... Nxe4 {[%clk
0:02:25.5]} 14. dxe4 {[%clk 0:03:00]} 14... Nd4 {[%clk 0:02:23.1]} 15. Qd1
{[%clk 0:02:50.7]} 15... Rad8 {[%clk 0:02:20.5]} 16. c3 {[%clk 0:02:51]} 16...
Ne6 {[%clk 0:02:11.5]} 17. Qe2 {[%clk 0:02:49.8]} 17... c4 {[%clk 0:02:10.4]}
18. b4 {[%clk 0:02:30.9]} 18... a5 {[%clk 0:02:04.3]} 19. a3 {[%clk 0:02:30.8]}
19... b5 {[%clk 0:01:59.8]} 20. Nd2 {[%clk 0:02:18.7]} 20... axb4 {[%clk
0:01:56.5]} 21. axb4 {[%clk 0:02:18.3]} 21... Ra8 {[%clk 0:01:56.4]} 22. Nf1
{[%clk 0:02:18.2]} 22... Bg5 {[%clk 0:01:51]} 23. h4 {[%clk 0:02:11.6]} 23...
Bh6 {[%clk 0:01:50.9]} 24. Rxa8 {[%clk 0:02:08]} 24... Rxa8 {[%clk 0:01:50.3]}
25. Bc1 {[%clk 0:02:08.3]} 25... Bxc1 {[%clk 0:01:48.8]} 26. Rxc1 {[%clk
0:02:08.4]} 26... Bc6 {[%clk 0:01:31.3]} 27. Ne3 {[%clk 0:02:06.6]} 27... Qa7
{[%clk 0:01:27.9]} 28. Ng4 {[%clk 0:02:03.3]} 28... f6 {[%clk 0:01:25]} 29. Bh3
{[%clk 0:02:02.9]} 29... Nf8 {[%clk 0:01:20.8]} 30. Rd1 {[%clk 0:01:50.9]} 30...
Qb7 {[%clk 0:01:12.6]} 31. Bg2 {[%clk 0:01:43.1]} 31... Qc7 {[%clk 0:00:52.9]}
32. Kh2 {[%clk 0:01:41.6]} 32... Rd8 {[%clk 0:00:47.2]} 33. Rd2 {[%clk
0:01:39.2]} 33... Rxd2 {[%clk 0:00:41]} 34. Qxd2 {[%clk 0:01:39.4]} 34... Ng6
{[%clk 0:00:37.6]} 35. Ne3 {[%clk 0:01:36.5]} 35... Ne7 {[%clk 0:00:34.6]} 36.
Qa2 {[%clk 0:01:29.2]} 36... Nc8 {[%clk 0:00:31.7]} 37. Qa6 {[%clk 0:01:27.2]}
37... Nd6 {[%clk 0:00:28.9]} 38. f3 {[%clk 0:01:22.2]} 38... Bb7 {[%clk
0:00:18.1]} 39. Qa7 {[%clk 0:01:20.8]} 39... Nc8 {[%clk 0:00:17.7]} 40. Qa2
{[%clk 0:01:14.2]} 40... Nb6 {[%clk 0:00:16.9]} 41. Qa5 {[%clk 0:01:11.8]} 41...
Qc6 {[%clk 0:00:08.4]} 42. Nf5 {[%clk 0:01:12.1]} 42... Kf7 {[%clk 0:00:07.6]}
43. Qa7 {[%clk 0:01:11.8]} 43... Nc8 {[%clk 0:00:06.9]} 44. Qb8 {[%clk
0:01:10.9]} 44... g6 {[%clk 0:00:07.2]} 45. Nh6+ {[%clk 0:01:07.6]} 45... Kg7
{[%clk 0:00:07.4]} 46. Ng4 {[%clk 0:01:07.9]} 46... h5 {[%clk 0:00:07.5]} 47.
Ne3 {[%clk 0:01:07.8]} 47... Qb6 {[%clk 0:00:07.8]} 48. Nc2 {[%clk 0:00:45.6]}
48... Ba6 {[%clk 0:00:06.8]} 49. Qa8 {[%clk 0:00:43.6]} 49... Qb7 {[%clk
0:00:06.1]} 50. Qxb7+ {[%clk 0:00:43]} 50... Bxb7 {[%clk 0:00:07]} 51. Bh3
{[%clk 0:00:42.3]} 51... Nb6 {[%clk 0:00:07]} 52. Na3 {[%clk 0:00:40.3]} 52...
Bc6 {[%clk 0:00:06.7]} 53. Kg2 {[%clk 0:00:34.4]} 53... Na4 {[%clk 0:00:05.1]}
54. Nb1 {[%clk 0:00:34.7]} 54... Nb2 {[%clk 0:00:05.1]} 55. Kf1 {[%clk
0:00:33.6]} 55... f5 {[%clk 0:00:05]} 56. exf5 {[%clk 0:00:31.9]} 56... Bxf3
{[%clk 0:00:05.6]} 57. fxg6 {[%clk 0:00:29.6]} 57... Na4 {[%clk 0:00:05.1]} 58.
Bd7 {[%clk 0:00:20.7]} 58... Be4 {[%clk 0:00:02.2]} 59. Bxb5 {[%clk 0:00:21.1]}
59... Nb2 {[%clk 0:00:02.1]} 60. Nd2 {[%clk 0:00:20.5]} 60... Bd3+ {[%clk
0:00:03]} 61. Kf2 {[%clk 0:00:21]} 61... Nd1+ {[%clk 0:00:03.6]} 62. Ke1 {[%clk
0:00:18.8]} 62... Nxc3 {[%clk 0:00:04.3]} 63. Bxc4 {[%clk 0:00:19.4]} 63... Bxg6
{[%clk 0:00:05]} 64. Kf2 {[%clk 0:00:18.2]} 64... Kf6 {[%clk 0:00:04.4]} 65. b5
{[%clk 0:00:17.3]} 65... Be8 {[%clk 0:00:04.1]} 66. b6 {[%clk 0:00:17.4]} 66...
Bc6 {[%clk 0:00:04.8]} 67. Ke3 {[%clk 0:00:16.7]} 67... Na4 {[%clk 0:00:05.5]}
68. Bb5 {[%clk 0:00:10.8]} 68... Bxb5 {[%clk 0:00:02.3]} 69. b7 {[%clk 0:00:11]}
69... Nc3 {[%clk 0:00:01.8]} 70. b8=Q {[%clk 0:00:10.1]} 70... Nd5+ {[%clk
0:00:02.7]} 71. Kf2 {[%clk 0:00:10.1]} 71... Bc6 {[%clk 0:00:03.1]} 72. Ne4+
{[%clk 0:00:10.3]} 72... Kf5 {[%clk 0:00:02.9]} 73. Qc8+ {[%clk 0:00:09.1]}
73... Kxe4 {[%clk 0:00:02.4]} 74. Qxc6 {[%clk 0:00:09.2]} 74... Kd4 {[%clk
0:00:03.3]} 75. Qg6 {[%clk 0:00:08.2]} 75... e4 {[%clk 0:00:03.6]} 76. Qxh5
{[%clk 0:00:06.3]} 76... e3+ {[%clk 0:00:04.3]} 77. Kf3 {[%clk 0:00:05.8]} 77...
Nc3 {[%clk 0:00:03]} 78. Qg4+ {[%clk 0:00:05.6]} 78... Kd3 {[%clk 0:00:03.5]}
79. Qg6+ {[%clk 0:00:05.7]} 79... Kd2 {[%clk 0:00:03.5]} 80. Qd6+ {[%clk
0:00:06.1]} 80... Kc2 {[%clk 0:00:03]} 81. Kxe3 {[%clk 0:00:06.2]} 1-0

[Event "Early-Titled-Tuesday-Blitz-February-27-2024"]
[Site "Chess.com"]
[Date "2024.02.27"]
[Round "4"]
[White "FLYD"]
[Black "toog"]
[Result "1/2-1/2"]
[WhiteElo "1848"]
[BlackElo "2634"]
[TimeControl "180+1"]
[EndTime "8:40:22 PST"]
[Termination "Game drawn - insufficient material"]

1. e4 {[%clk 0:03:00.9]} 1... c6 {[%clk 0:02:58]} 2. d4 {[%clk 0:02:59.3]} 2...
d5 {[%clk 0:02:58.9]} 3. Nc3 {[%clk 0:02:49.9]} 3... dxe4 {[%clk 0:02:58.3]} 4.
Bc4 {[%clk 0:02:50.4]} 4... Nf6 {[%clk 0:02:56.4]} 5. f3 {[%clk 0:02:50]} 5...
exf3 {[%clk 0:02:50]} 6. Nxf3 {[%clk 0:02:50.9]} 6... e6 {[%clk 0:02:41.1]} 7.
O-O {[%clk 0:02:48]} 7... Be7 {[%clk 0:02:34]} 8. Bf4 {[%clk 0:02:48]} 8... Nd5
{[%clk 0:02:32.1]} 9. Nxd5 {[%clk 0:02:41.2]} 9... cxd5 {[%clk 0:02:31.5]} 10.
Bd3 {[%clk 0:02:41.8]} 10... Nc6 {[%clk 0:02:29.6]} 11. c3 {[%clk 0:02:41.2]}
11... Bd7 {[%clk 0:02:26.2]} 12. Qe1 {[%clk 0:02:38.2]} 12... O-O {[%clk
0:02:24.8]} 13. Qg3 {[%clk 0:02:35.6]} 13... f6 {[%clk 0:02:09]} 14. Rae1 {[%clk
0:02:31.3]} 14... Rf7 {[%clk 0:01:57.4]} 15. Kh1 {[%clk 0:02:12]} 15... g5
{[%clk 0:01:41.5]} 16. Bc7 {[%clk 0:01:46.4]} 16... Qf8 {[%clk 0:01:38.4]} 17.
c4 {[%clk 0:01:43.6]} 17... Nb4 {[%clk 0:01:32.8]} 18. Be2 {[%clk 0:01:43]}
18... Nc2 {[%clk 0:01:27]} 19. Rc1 {[%clk 0:01:14.1]} 19... Ne3 {[%clk
0:01:26.4]} 20. Rfe1 {[%clk 0:01:02.3]} 20... Nf5 {[%clk 0:01:16.3]} 21. Qf2
{[%clk 0:01:01.1]} 21... Bc6 {[%clk 0:01:13.4]} 22. a3 {[%clk 0:00:55]} 22...
Rc8 {[%clk 0:01:11.8]} 23. Ba5 {[%clk 0:00:51.5]} 23... Bd6 {[%clk 0:01:05.2]}
24. Bd3 {[%clk 0:00:37.4]} 24... dxc4 {[%clk 0:01:02.5]} 25. Bxc4 {[%clk
0:00:35.4]} 25... Bd5 {[%clk 0:01:00.6]} 26. Bxd5 {[%clk 0:00:30.6]} 26... exd5
{[%clk 0:01:01.5]} 27. Nd2 {[%clk 0:00:20]} 27... Rxc1 {[%clk 0:00:50.4]} 28.
Rxc1 {[%clk 0:00:20.9]} 28... Qh6 {[%clk 0:00:50.4]} 29. Nf1 {[%clk 0:00:20.3]}
29... Qg6 {[%clk 0:00:45.3]} 30. Rc8+ {[%clk 0:00:19]} 30... Rf8 {[%clk
0:00:45.5]} 31. Rxf8+ {[%clk 0:00:18.1]} 31... Bxf8 {[%clk 0:00:46.4]} 32. Qf3
{[%clk 0:00:18.3]} 32... Ne7 {[%clk 0:00:45.6]} 33. Bb4 {[%clk 0:00:17.8]} 33...
Qf5 {[%clk 0:00:43.8]} 34. Ne3 {[%clk 0:00:12.9]} 34... Qb1+ {[%clk 0:00:40]}
35. Qf1 {[%clk 0:00:12.2]} 35... Qxf1+ {[%clk 0:00:39.5]} 36. Nxf1 {[%clk
0:00:13.1]} 36... Nf5 {[%clk 0:00:39.9]} 37. Bc3 {[%clk 0:00:11.9]} 37... Bd6
{[%clk 0:00:39.1]} 38. Kg1 {[%clk 0:00:12]} 38... Kf7 {[%clk 0:00:37.8]} 39. g4
{[%clk 0:00:11.7]} 39... Nh4 {[%clk 0:00:36.6]} 40. Kf2 {[%clk 0:00:11.2]} 40...
Ke6 {[%clk 0:00:36.6]} 41. h3 {[%clk 0:00:10.9]} 41... Ng6 {[%clk 0:00:36.5]}
42. Bd2 {[%clk 0:00:10]} 42... Bf4 {[%clk 0:00:36]} 43. Bc3 {[%clk 0:00:10.4]}
43... Bc1 {[%clk 0:00:35.1]} 44. Kf3 {[%clk 0:00:10.3]} 44... Nf4 {[%clk
0:00:35.1]} 45. Kg3 {[%clk 0:00:10.6]} 45... Ne2+ {[%clk 0:00:34]} 46. Kf3
{[%clk 0:00:10.9]} 46... Nxc3 {[%clk 0:00:34.9]} 47. bxc3 {[%clk 0:00:11.5]}
47... Bxa3 {[%clk 0:00:35.8]} 48. Nd2 {[%clk 0:00:11.6]} 48... Bb2 {[%clk
0:00:34.8]} 49. Nb3 {[%clk 0:00:11.9]} 49... b6 {[%clk 0:00:32.8]} 50. Ke3
{[%clk 0:00:11.4]} 50... Bxc3 {[%clk 0:00:33]} 51. Kd3 {[%clk 0:00:12.3]} 51...
Bb4 {[%clk 0:00:32.5]} 52. Nc1 {[%clk 0:00:10.3]} 52... Bd6 {[%clk 0:00:29.5]}
53. Ne2 {[%clk 0:00:11.2]} 53... a5 {[%clk 0:00:28.5]} 54. Nc3 {[%clk
0:00:11.9]} 54... Bb4 {[%clk 0:00:27.4]} 55. Nb5 {[%clk 0:00:11.9]} 55... Kd7
{[%clk 0:00:27.6]} 56. Kc2 {[%clk 0:00:09.3]} 56... Kc6 {[%clk 0:00:24.5]} 57.
Na7+ {[%clk 0:00:09.5]} 57... Kb7 {[%clk 0:00:24.7]} 58. Nb5 {[%clk 0:00:10.4]}
58... Be7 {[%clk 0:00:24.5]} 59. Kb3 {[%clk 0:00:10.2]} 59... Kc6 {[%clk
0:00:17.7]} 60. Na7+ {[%clk 0:00:10.1]} 60... Kd7 {[%clk 0:00:17.9]} 61. Nb5
{[%clk 0:00:10.8]} 61... Bd6 {[%clk 0:00:18.4]} 62. Ka4 {[%clk 0:00:10.5]} 62...
Bg3 {[%clk 0:00:18.3]} 63. Nc3 {[%clk 0:00:09.5]} 63... Kc6 {[%clk 0:00:17.4]}
64. Nb5 {[%clk 0:00:09.1]} 64... Bf2 {[%clk 0:00:18.3]} 65. Na7+ {[%clk
0:00:09.4]} 65... Kb7 {[%clk 0:00:18]} 66. Nb5 {[%clk 0:00:10.3]} 66... Bg3
{[%clk 0:00:18]} 67. Nc3 {[%clk 0:00:09.8]} 67... Bh2 {[%clk 0:00:18.7]} 68.
Nxd5 {[%clk 0:00:09.5]} 68... Bg1 {[%clk 0:00:18.9]} 69. Nxf6 {[%clk 0:00:09.8]}
69... Ka6 {[%clk 0:00:19]} 70. d5 {[%clk 0:00:08.5]} 70... b5+ {[%clk
0:00:19.9]} 71. Kb3 {[%clk 0:00:08.9]} 71... a4+ {[%clk 0:00:19.9]} 72. Kc3
{[%clk 0:00:07.8]} 72... a3 {[%clk 0:00:18.3]} 73. Kb3 {[%clk 0:00:06.4]} 73...
Bc5 {[%clk 0:00:16.8]} 74. Ne4 {[%clk 0:00:05.7]} 74... Bf8 {[%clk 0:00:16.9]}
75. d6 {[%clk 0:00:05.8]} 75... Kb6 {[%clk 0:00:17.3]} 76. d7 {[%clk 0:00:06.4]}
76... Kc7 {[%clk 0:00:17.3]} 77. Nxg5 {[%clk 0:00:07]} 77... Kxd7 {[%clk
0:00:17.1]} 78. Nxh7 {[%clk 0:00:07.6]} 78... Be7 {[%clk 0:00:17.5]} 79. g5
{[%clk 0:00:07.4]} 79... Ke6 {[%clk 0:00:17.8]} 80. h4 {[%clk 0:00:06.3]} 80...
b4 {[%clk 0:00:18]} 81. h5 {[%clk 0:00:04.8]} 81... Kf7 {[%clk 0:00:18.1]} 82.
g6+ {[%clk 0:00:05.3]} 82... Kg7 {[%clk 0:00:18.2]} 83. Ka2 {[%clk 0:00:05.5]}
83... Kh6 {[%clk 0:00:17.6]} 84. Kb3 {[%clk 0:00:05.7]} 84... Kg7 {[%clk
0:00:16.7]} 85. Ka2 {[%clk 0:00:04.7]} 85... Bc5 {[%clk 0:00:16.6]} 86. Kb3
{[%clk 0:00:04.9]} 86... Bd4 {[%clk 0:00:16.5]} 87. Ng5 {[%clk 0:00:04.7]} 87...
Kh6 {[%clk 0:00:16.4]} 88. Ne6 {[%clk 0:00:05]} 88... Bc3 {[%clk 0:00:16.6]} 89.
Ka2 {[%clk 0:00:04.8]} 89... Kxh5 {[%clk 0:00:16.8]} 90. g7 {[%clk 0:00:05.4]}
90... Bxg7 {[%clk 0:00:17.3]} 91. Nxg7+ {[%clk 0:00:06.3]} 91... Kg6 {[%clk
0:00:18.1]} 92. Ne6 {[%clk 0:00:06.6]} 92... Kf6 {[%clk 0:00:19]} 93. Nd4 {[%clk
0:00:07.2]} 93... Ke5 {[%clk 0:00:19.9]} 94. Nc6+ {[%clk 0:00:07.4]} 94... Kd5
{[%clk 0:00:20.8]} 95. Nxb4+ {[%clk 0:00:08.2]} 95... Kc5 {[%clk 0:00:21.5]} 96.
Nc2 {[%clk 0:00:09]} 96... Kb5 {[%clk 0:00:22.4]} 97. Nxa3+ {[%clk 0:00:09.9]}
1/2-1/2

[Event "Early-Titled-Tuesday-Blitz-February-27-2024"]
[Site "Chess.com"]
[Date "2024.02.27"]
[Round "4"]
[White "noblerone"]
[Black "LLariMarc"]
[Result "0-1"]
[WhiteElo "2507"]
[BlackElo "2347"]
[TimeControl "180+1"]
[EndTime "8:40:30 PST"]
[Termination "LLariMarc won by checkmate"]

1. d4 {[%clk 0:02:53.1]} 1... e6 {[%clk 0:03:00.9]} 2. c4 {[%clk 0:02:50.7]}
2... Nf6 {[%clk 0:03:01.4]} 3. Nc3 {[%clk 0:02:50]} 3... Bb4 {[%clk 0:03:01.9]}
4. Qb3 {[%clk 0:02:48.1]} 4... Bxc3+ {[%clk 0:03:01.6]} 5. Qxc3 {[%clk
0:02:47.4]} 5... b6 {[%clk 0:02:58.9]} 6. Nf3 {[%clk 0:02:41]} 6... Bb7 {[%clk
0:02:50.5]} 7. Bg5 {[%clk 0:02:40.8]} 7... h6 {[%clk 0:02:49.9]} 8. Bh4 {[%clk
0:02:40.5]} 8... O-O {[%clk 0:02:48.5]} 9. e3 {[%clk 0:02:40.4]} 9... d6 {[%clk
0:02:48.8]} 10. Be2 {[%clk 0:02:40.1]} 10... Nbd7 {[%clk 0:02:49.3]} 11. O-O
{[%clk 0:02:39.4]} 11... Qe7 {[%clk 0:02:49.6]} 12. Nd2 {[%clk 0:02:38]} 12...
Rfe8 {[%clk 0:02:49]} 13. Bf3 {[%clk 0:02:37.4]} 13... Bxf3 {[%clk 0:02:49.2]}
14. Nxf3 {[%clk 0:02:38.3]} 14... c5 {[%clk 0:02:48.9]} 15. Rfd1 {[%clk
0:02:35]} 15... Rac8 {[%clk 0:02:45.4]} 16. Rac1 {[%clk 0:02:32.3]} 16... g5
{[%clk 0:02:41.9]} 17. Bg3 {[%clk 0:02:25.8]} 17... Ne4 {[%clk 0:02:42.2]} 18.
Qa3 {[%clk 0:02:19.3]} 18... Ndf6 {[%clk 0:02:40.6]} 19. dxc5 {[%clk 0:02:13.4]}
19... bxc5 {[%clk 0:02:17.6]} 20. Qa6 {[%clk 0:02:07.1]} 20... Nxg3 {[%clk
0:02:16.8]} 21. hxg3 {[%clk 0:02:06.9]} 21... Ne4 {[%clk 0:02:17.5]} 22. Nd2
{[%clk 0:02:03.8]} 22... Nxd2 {[%clk 0:02:17.8]} 23. Rxd2 {[%clk 0:02:04.7]}
23... Rb8 {[%clk 0:02:13]} 24. b3 {[%clk 0:01:53.5]} 24... Rb6 {[%clk
0:02:12.7]} 25. Qa4 {[%clk 0:01:52.8]} 25... Kg7 {[%clk 0:02:11.1]} 26. Rcd1
{[%clk 0:01:50.2]} 26... Rd8 {[%clk 0:02:10.2]} 27. Qa3 {[%clk 0:01:46.9]} 27...
Rd7 {[%clk 0:02:05.7]} 28. g4 {[%clk 0:01:40.9]} 28... Qf6 {[%clk 0:02:02.1]}
29. Qa4 {[%clk 0:01:30.9]} 29... Qd8 {[%clk 0:01:56.9]} 30. Qa5 {[%clk
0:01:28.2]} 30... Rc6 {[%clk 0:01:54]} 31. Qc3+ {[%clk 0:01:16.2]} 31... Qf6
{[%clk 0:01:50.3]} 32. Qc2 {[%clk 0:01:16]} 32... Kf8 {[%clk 0:01:49]} 33. Qh7
{[%clk 0:01:13.3]} 33... Qg7 {[%clk 0:01:48.1]} 34. Qe4 {[%clk 0:01:13.9]} 34...
Rb6 {[%clk 0:01:38.5]} 35. Qa8+ {[%clk 0:01:09.5]} 35... Ke7 {[%clk 0:01:38.4]}
36. Qe4 {[%clk 0:00:59.4]} 36... Qh8 {[%clk 0:01:19.6]} 37. f3 {[%clk
0:00:58.9]} 37... a5 {[%clk 0:01:15.8]} 38. Qd3 {[%clk 0:00:55.5]} 38... h5
{[%clk 0:01:12.4]} 39. gxh5 {[%clk 0:00:52.5]} 39... Qxh5 {[%clk 0:01:13.3]} 40.
Qe4 {[%clk 0:00:52.5]} 40... Qh8 {[%clk 0:01:11.1]} 41. Qg4 {[%clk 0:00:48.1]}
41... Qg7 {[%clk 0:01:09.6]} 42. f4 {[%clk 0:00:44.2]} 42... f5 {[%clk
0:01:07.7]} 43. Qg3 {[%clk 0:00:33.5]} 43... g4 {[%clk 0:01:05.1]} 44. Qh4+
{[%clk 0:00:32.4]} 44... Kf7 {[%clk 0:01:01.3]} 45. Qh5+ {[%clk 0:00:29.2]}
45... Ke7 {[%clk 0:00:56.7]} 46. g3 {[%clk 0:00:27]} 46... Kd8 {[%clk
0:00:50.8]} 47. Qh2 {[%clk 0:00:24.4]} 47... Kc7 {[%clk 0:00:50.5]} 48. Qg2
{[%clk 0:00:24.3]} 48... Rb8 {[%clk 0:00:48.6]} 49. e4 {[%clk 0:00:22.6]} 49...
fxe4 {[%clk 0:00:45.4]} 50. Qxe4 {[%clk 0:00:23.5]} 50... Qh6 {[%clk 0:00:34.4]}
51. Rh2 {[%clk 0:00:19.3]} 51... Qf6 {[%clk 0:00:33.4]} 52. Re1 {[%clk
0:00:19.4]} 52... Re8 {[%clk 0:00:31.9]} 53. Rh7 {[%clk 0:00:18.9]} 53... Rxh7
{[%clk 0:00:28.2]} 54. Qxh7+ {[%clk 0:00:19.8]} 54... Re7 {[%clk 0:00:28.3]} 55.
Qe4 {[%clk 0:00:20.7]} 55... Qd4+ {[%clk 0:00:25.9]} 56. Kg2 {[%clk 0:00:19.2]}
56... Qxe4+ {[%clk 0:00:25.7]} 57. Rxe4 {[%clk 0:00:20.1]} 57... Kd7 {[%clk
0:00:25]} 58. Kf2 {[%clk 0:00:20.4]} 58... Rh7 {[%clk 0:00:24.7]} 59. Re2 {[%clk
0:00:18.4]} 59... Rh2+ {[%clk 0:00:23.7]} 60. Ke3 {[%clk 0:00:18.1]} 60... Rh3
{[%clk 0:00:21.6]} 61. Rg2 {[%clk 0:00:17.8]} 61... Ke7 {[%clk 0:00:21.8]} 62.
Ke4 {[%clk 0:00:18.3]} 62... Kf6 {[%clk 0:00:22.2]} 63. a3 {[%clk 0:00:18]}
63... Rh1 {[%clk 0:00:22.5]} 64. Rd2 {[%clk 0:00:16.7]} 64... Re1+ {[%clk
0:00:20.6]} 65. Kd3 {[%clk 0:00:16.8]} 65... d5 {[%clk 0:00:15.9]} 66. cxd5
{[%clk 0:00:15.6]} 66... exd5 {[%clk 0:00:16.8]} 67. Kc2 {[%clk 0:00:14.6]}
67... Ke6 {[%clk 0:00:13.2]} 68. Rh2 {[%clk 0:00:15.3]} 68... Rg1 {[%clk
0:00:12.7]} 69. Rh6+ {[%clk 0:00:14.8]} 69... Kf5 {[%clk 0:00:13.1]} 70. Rd6
{[%clk 0:00:14.3]} 70... Ke4 {[%clk 0:00:13.4]} 71. Re6+ {[%clk 0:00:14.1]}
71... Kd4 {[%clk 0:00:13.9]} 72. f5 {[%clk 0:00:10.7]} 72... Rxg3 {[%clk
0:00:14]} 73. f6 {[%clk 0:00:11.6]} 73... Rg2+ {[%clk 0:00:14.7]} 74. Kc1 {[%clk
0:00:11.7]} 74... Rf2 {[%clk 0:00:15.5]} 75. Kd1 {[%clk 0:00:08.3]} 75... g3
{[%clk 0:00:15.6]} 76. Ke1 {[%clk 0:00:08.5]} 76... Rf4 {[%clk 0:00:13.5]} 77.
f7 {[%clk 0:00:03.4]} 77... Rxf7 {[%clk 0:00:13.2]} 78. Rg6 {[%clk 0:00:04.3]}
78... Rf3 {[%clk 0:00:13.5]} 79. Ke2 {[%clk 0:00:04.5]} 79... Rf2+ {[%clk
0:00:13.3]} 80. Ke1 {[%clk 0:00:04.5]} 80... Ra2 {[%clk 0:00:11.9]} 81. Rxg3
{[%clk 0:00:03.6]} 81... Rxa3 {[%clk 0:00:12.4]} 82. Kd2 {[%clk 0:00:04.1]}
82... Ra2+ {[%clk 0:00:13]} 83. Kc1 {[%clk 0:00:04.9]} 83... a4 {[%clk
0:00:12.3]} 84. bxa4 {[%clk 0:00:04.7]} 84... c4 {[%clk 0:00:12.9]} 85. Kb1
{[%clk 0:00:04.5]} 85... Rxa4 {[%clk 0:00:13.1]} 86. Kc2 {[%clk 0:00:04.9]}
86... Ra2+ {[%clk 0:00:13.2]} 87. Kc1 {[%clk 0:00:05.8]} 87... Rf2 {[%clk
0:00:13.8]} 88. Rg4+ {[%clk 0:00:05.9]} 88... Kc5 {[%clk 0:00:13]} 89. Rg3
{[%clk 0:00:06.8]} 89... d4 {[%clk 0:00:13.3]} 90. Rg8 {[%clk 0:00:06.2]} 90...
Kb4 {[%clk 0:00:13.3]} 91. Rg3 {[%clk 0:00:06]} 91... d3 {[%clk 0:00:13.5]} 92.
Rg1 {[%clk 0:00:03.9]} 92... Kc3 {[%clk 0:00:13.8]} 93. Kb1 {[%clk 0:00:04.1]}
93... Rb2+ {[%clk 0:00:13.8]} 94. Ka1 {[%clk 0:00:04.2]} 94... Rb8 {[%clk
0:00:13.3]} 95. Rc1+ {[%clk 0:00:04.4]} 95... Kd4 {[%clk 0:00:13.8]} 96. Rh1
{[%clk 0:00:04.5]} 96... d2 {[%clk 0:00:13.3]} 97. Ka2 {[%clk 0:00:04.3]} 97...
Kc3 {[%clk 0:00:13.4]} 98. Rh3+ {[%clk 0:00:04]} 98... Kc2 {[%clk 0:00:14]} 99.
Ka3 {[%clk 0:00:03.5]} 99... c3 {[%clk 0:00:14.4]} 100. Rh1 {[%clk 0:00:03.4]}
100... Rb3+ {[%clk 0:00:14]} 101. Ka2 {[%clk 0:00:03.1]} 101... Rb2+ {[%clk
0:00:14.3]} 102. Ka1 {[%clk 0:00:03]} 102... Rb8 {[%clk 0:00:14]} 103. Ka2
{[%clk 0:00:03.9]} 103... Ra8# {[%clk 0:00:14.6]} 0-1